bitfinex/quotes_SOLUSD_20250622
["timestamp","ask_amount","ask_price","bid_price","bid_amount"]
[1750572869476,146.9,136.58,136.57,10.87675602]
[1750572869676,146.9,136.58,136.54,20.50681118]
[1750572869880,146.9,136.58,136.57,10.87675602]
[1750572870705,6.5,136.62,136.57,50.02871137]
[1750572870910,6.5,136.62,136.58,10.87675602]
[1750572871514,6.5,136.62,136.59,10.87675602]
[1750572872098,6.5,136.62,136.59,26.0]
[1750572872303,6.5,136.62,136.58,36.87675602]
[1750572872810,6.5,136.62,136.59,20.49930447]
[1750572877493,6.5,136.62,136.59,31.37606049]
[1750572877694,6.5,136.62,136.59,20.49930447]
[1750572877896,6.5,136.62,136.59,31.37606049]
[1750572878209,17.37675602,136.62,136.59,20.49930447]
[1750572880111,6.5,136.62,136.59,20.49930447]
[1750572880823,6.5,136.62,136.59,31.37606049]
[1750572881555,146.9,136.61,136.59,31.37606049]
[1750572881687,146.9,136.61,136.59,20.49930447]
[1750572882910,166.02365602,136.61,136.59,5.85694413]
[1750572883417,157.77675602,136.6,136.59,5.85694413]
[1750572883592,193.30802814,136.6,136.59,5.85694413]
[1750572884292,193.30802814,136.6,136.56,20.50292563]
[1750572884487,10.87675602,136.57,136.56,5.85823081]
[1750572884902,10.87675602,136.57,136.48,25.38595602]
[1750572884903,8.2469,136.56,136.54,5.85877795]
[1750572885103,10.87675602,136.55,136.54,5.85877795]
[1750572885289,49.18365602,136.56,136.54,5.85877795]
[1750572885493,38.3069,136.56,136.54,5.85877795]
[1750572886510,38.3069,136.56,136.53,20.50831318]
[1750572886703,10.87675602,136.57,136.53,20.50831318]
[1750572887018,10.87675602,136.56,136.53,20.50831318]
[1750572888995,30.06,136.58,136.53,20.50831318]
[1750572888996,10.87675602,136.57,136.53,20.50831318]
[1750572890403,146.9,136.56,136.53,20.50831318]
[1750572896307,157.77675602,136.56,136.53,20.50831318]
[1750572896506,10.87675602,136.54,136.53,5.85951805]
[1750572897319,176.96,136.56,136.53,5.85951805]
[1750572897527,10.87675602,136.55,136.53,5.85951805]
[1750572898326,10.87675602,136.55,136.52,5.85994726]
[1750572898523,183.46,136.56,136.52,5.85994726]
[1750572898722,10.87675602,136.55,136.52,20.50981541]
[1750572899426,146.9,136.54,136.52,20.50981541]
[1750572899728,146.9,136.54,136.52,14.64986815]
[1750572900802,146.9,136.54,136.52,20.50981541]
[1750572901007,157.77675602,136.54,136.52,5.85994726]
[1750572902732,146.9,136.54,136.52,5.85994726]
[1750572902909,146.9,136.54,136.51,20.51113771]
[1750572903740,146.9,136.54,136.51,31.38789373]
[1750572906711,146.9,136.54,136.51,20.51113771]
[1750572906912,157.77675602,136.54,136.51,20.51113771]
[1750572907433,165.83045602,136.54,136.51,20.51113771]
[1750572908116,157.77675602,136.53,136.49,5.86123525]
[1750572908352,146.9,136.52,136.49,5.86123525]
[1750572909033,146.9,136.52,136.49,20.51432338]
[1750572911007,157.77675602,136.52,136.49,20.51432338]
[1750572911939,10.87675602,136.51,136.49,5.86123525]
[1750572912141,146.9,136.5,136.49,5.86123525]
[1750572912337,10.87675602,136.51,136.49,5.86123525]
[1750572912537,10.87675602,136.5,136.49,5.86123525]
[1750572912713,10.87675602,136.5,136.47,5.86209423]
[1750572914634,30.12,136.51,136.47,20.51732981]
[1750572915019,40.99675602,136.51,136.47,20.51732981]
[1750572916942,146.9,136.49,136.47,20.51732981]
[1750572919064,146.9,136.49,136.47,14.65523558]
[1750572920072,157.77675602,136.49,136.46,5.86252381]
[1750572920225,157.77675602,136.48,136.46,5.86252381]
[1750572920843,146.9,136.47,136.46,5.86252381]
[1750572921252,146.9,136.47,136.45,5.86295346]
[1750572921432,157.77675602,136.46,136.45,5.86295346]
[1750572921633,10.87675602,136.46,136.45,5.86295346]
[1750572922236,40.97675602,136.47,136.45,5.86295346]
[1750572922443,37.8501,136.49,136.45,20.52033711]
[1750572922647,18.62685602,136.49,136.45,31.39709313]
[1750572922952,7.7501,136.49,136.45,31.39709313]
[1750572923833,18.62685602,136.49,136.45,20.52033711]
[1750572924033,10.87675602,136.48,136.45,20.52033711]
[1750572924262,10.87675602,136.47,136.45,5.86295346]
[1750572924556,40.97675602,136.46,136.43,5.86381294]
[1750572924754,10.87675602,136.45,136.43,5.86381294]
[1750572925336,10.87675602,136.45,136.42,14.65980937]
[1750572928860,146.9,136.44,136.42,14.65980937]
[1750572931346,146.9,136.44,136.42,20.52405214]
[1750572931864,146.9,136.43,136.42,20.52405214]
[1750572933067,146.9,136.43,136.42,14.65980937]
[1750572934445,7.7501,136.49,136.42,25.53656539]
[1750572934446,157.77675602,136.48,136.42,25.53656539]
[1750572934647,146.9,136.47,136.43,10.87675602]
[1750572935043,157.77675602,136.47,136.43,10.87675602]
[1750572935278,157.77675602,136.47,136.44,20.5218411]
[1750572936268,157.77675602,136.47,136.42,10.87675602]
[1750572937769,157.77675602,136.47,136.43,20.5233453]
[1750572937770,146.9,136.46,136.43,20.5233453]
[1750572941363,146.9,136.46,136.43,31.40010132]
[1750572942379,26.0,136.51,136.43,31.40010132]
[1750572942380,146.9,136.5,136.45,55.52640488]
[1750572942548,146.9,136.5,136.47,10.87675602]
[1750572942749,146.9,136.5,136.48,10.87675602]
[1750572942943,7.6644,136.53,136.49,10.87675602]
[1750572943368,164.29675602,136.54,136.49,10.87675602]
[1750572944469,164.29675602,136.54,136.5,20.51282051]
[1750572944664,164.29675602,136.54,136.5,31.38957653]
[1750572947179,153.42,136.54,136.5,31.38957653]
[1750572948481,164.29675602,136.54,136.5,31.38957653]
[1750572950356,153.42,136.54,136.51,10.87675602]
[1750572951686,153.42,136.54,136.5,25.52877067]
[1750572952065,153.42,136.54,136.51,10.87675602]
[1750572954297,153.42,136.54,136.53,26.0]
[1750572955277,146.9,136.54,136.53,26.0]
[1750572956692,146.9,136.54,136.53,31.85951805]
[1750572957690,146.9,136.54,136.53,5.85951805]
[1750572957865,157.77675602,136.54,136.53,5.85951805]
[1750572958985,157.77675602,136.54,136.52,5.85994726]
[1750572959690,10.87675602,136.53,136.52,5.85994726]
[1750572961171,10.87675602,136.53,136.5,20.51282051]
[1750572961371,146.9,136.52,136.5,20.51282051]
[1750572962470,146.9,136.52,136.5,31.38957653]
[1750572963276,146.9,136.52,136.5,46.51282051]
[1750572966175,146.9,136.52,136.51,36.87675602]
[1750572966791,146.9,136.52,136.5,31.38957653]
[1750572967370,146.9,136.52,136.51,26.0]
[1750572967571,146.9,136.52,136.5,31.38957653]
[1750572968073,146.9,136.52,136.51,26.0]
[1750572969686,146.9,136.52,136.51,31.86037652]
[1750572971176,146.9,136.52,136.51,42.73713254]
[1750572973182,146.9,136.52,136.51,5.86037652]
[1750572976093,146.9,136.52,136.51,16.73713254]
[1750572978302,146.9,136.52,136.51,5.86037652]
[1750572980415,146.9,136.52,136.51,16.73713254]
[1750572980907,146.9,136.52,136.51,5.86037652]
[1750572981418,146.9,136.55,136.51,31.38807386]
[1750572981710,146.4,136.55,136.51,31.38807386]
[1750572982318,16.34935009,136.54,136.51,20.51131784]
[1750572982524,10.87675602,136.54,136.51,20.51131784]
[1750572982821,16.34935959,136.54,136.51,20.51131784]
[1750572983007,157.27675602,136.53,136.51,5.86037652]
[1750572984317,146.4,136.53,136.51,5.86037652]
[1750572986892,5.4859505,136.52,136.51,5.86037652]
[1750572987216,146.4,136.53,136.51,5.86037652]
[1750572987502,5.48815788,136.52,136.51,5.86037652]
[1750572987806,46.4249139,136.52,136.48,5.86166471]
[1750572988009,8.1824,136.48,136.42,5.86424277]
[1750572988311,10.87675602,136.44,136.42,5.86424277]
[1750572988614,10.87675602,136.45,136.42,5.86424277]
[1750572988983,10.87675602,136.45,136.42,20.52484971]
[1750572989999,5.47723708,136.46,136.42,20.52484971]
[1750572990000,10.87675602,136.46,136.42,20.52484971]
[1750572990514,10.87675602,136.45,136.42,20.52484971]
[1750572993822,10.87675602,136.43,136.42,5.86424277]
[1750572994402,157.77675602,136.44,136.42,5.86424277]
[1750572994799,157.77675602,136.44,136.39,29.14041476]
[1750572995013,10.87675602,136.43,136.4,5.86510263]
[1750572996131,10.87675602,136.41,136.4,5.86510263]
[1750572997205,10.87675602,136.41,136.37,5.8663929]
[1750572997408,146.9,136.4,136.37,5.8663929]
[1750572998423,10.87675602,136.39,136.36,20.53310949]
[1750572999919,157.77675602,136.4,136.36,20.53310949]
[1750573001224,157.28344462,136.4,136.36,20.53310949]
[1750573002814,146.4066886,136.39,136.36,20.53310949]
[1750573003214,157.28344462,136.39,136.36,14.66628638]
[1750573004099,157.28344462,136.39,136.36,20.53310949]
[1750573005518,157.28344462,136.39,136.36,14.66628638]
[1750573005728,10.87675602,136.38,136.36,14.66628638]
[1750573006202,10.87675602,136.37,136.35,5.86725339]
[1750573007125,157.28344462,136.36,136.34,129.33991899]
[1750573007307,176.4866886,136.36,136.34,129.3399303]
[1750573007505,10.87675602,136.35,136.34,129.3399303]
[1750573009326,10.87675602,136.35,136.34,123.47229017]
[1750573009524,10.87675602,136.35,136.31,14.67243782]
[1750573009709,10.87675602,136.34,136.31,14.67243782]
[1750573011427,10.87675602,136.33,136.31,14.67243782]
[1750573011630,30.08,136.36,136.31,14.67243782]
[1750573011809,10.87675602,136.33,136.31,14.67243782]
[1750573013418,30.08,136.36,136.31,14.67243782]
[1750573013714,10.87675602,136.33,136.31,14.67243782]
[1750573013915,30.08,136.36,136.31,14.67243782]
[1750573014121,10.87675602,136.33,136.31,14.67243782]
[1750573014517,146.9,136.32,136.31,14.67243782]
[1750573014719,144.9,136.32,136.31,14.67243782]
[1750573015232,144.9,136.32,136.3,5.86940572]
[1750573015233,144.9,136.31,136.3,5.86940572]
[1750573016924,144.9,136.31,136.28,20.54512824]
[1750573020035,155.77675602,136.31,136.28,20.54512824]
[1750573020225,144.9,136.3,136.28,5.87026709]
[1750573020536,155.77675602,136.29,136.28,5.87026709]
[1750573021038,144.9,136.29,136.28,5.87026709]
[1750573022131,155.77675602,136.29,136.26,5.87112872]
[1750573022637,10.87675602,136.28,136.26,5.87112872]
[1750573023150,30.08,136.3,136.26,5.87112872]
[1750573023151,155.77675602,136.27,136.26,5.87112872]
[1750573023325,155.77675602,136.27,136.22,149.13907841]
[1750573023326,10.87675602,136.27,136.23,5.87242163]
[1750573023528,32.5,136.29,136.23,5.87242163]
[1750573023529,10.87675602,136.24,136.23,5.87242163]
[1750573024213,10.87675602,136.24,136.2,5.87371512]
[1750573024449,10.87675602,136.22,136.2,5.87371512]
[1750573024824,146.9,136.23,136.2,5.87371512]
[1750573025027,157.77675602,136.23,136.2,20.55800293]
[1750573025537,10.87675602,136.22,136.2,20.55800293]
[1750573025910,157.77675602,136.23,136.2,20.55800293]
[1750573026217,157.77675602,136.23,136.2,14.68428781]
[1750573029017,146.9,136.23,136.2,14.68428781]
[1750573029218,146.9,136.23,136.21,10.87675602]
[1750573029418,146.9,136.23,136.21,18.64964886]
[1750573029613,146.9,136.23,136.22,10.87675602]
[1750573030934,146.9,136.23,136.22,16.74960875]
[1750573032046,146.9,136.27,136.22,31.43174059]
[1750573032340,146.9,136.26,136.24,10.87675602]
[1750573032641,146.9,136.26,136.22,20.55498457]
[1750573032642,146.9,136.26,136.25,10.87675602]
[1750573033139,18.66335602,136.3,136.25,10.87675602]
[1750573033140,146.9,136.29,136.25,10.87675602]
[1750573033337,146.9,136.29,136.27,10.87675602]
[1750573033542,146.9,136.29,136.28,10.87675602]
[1750573034126,146.9,136.29,136.28,16.74702311]
[1750573036223,13.0382,136.33,136.28,31.42269085]
[1750573036542,23.91495602,136.33,136.29,10.87675602]
[1750573037427,6.5,136.33,136.29,10.87675602]
[1750573037948,17.37675602,136.33,136.28,20.54593483]
[1750573038147,17.37675602,136.33,136.3,5.86940572]
[1750573038325,6.5,136.33,136.3,20.54292002]
[1750573039168,17.37675602,136.33,136.3,20.54292002]
[1750573040150,6.5,136.33,136.3,20.54292002]
[1750573041346,146.9,136.32,136.28,10.87675602]
[1750573041535,146.9,136.32,136.29,10.87675602]
[1750573042130,146.9,136.32,136.3,10.87675602]
[1750573042327,159.29145602,136.36,136.31,10.87675602]
[1750573042523,159.29145602,136.36,136.32,10.87675602]
[1750573042728,148.4147,136.36,136.32,10.87675602]
[1750573043143,148.4147,136.36,136.33,5.86811413]
[1750573043352,159.29145602,136.36,136.33,5.86811413]
[1750573044239,159.29145602,136.36,136.32,20.53905549]
[1750573045045,159.29145602,136.36,136.32,31.41581151]
[1750573045046,146.9,136.36,136.32,31.41581151]
[1750573045347,62.58,136.38,136.33,10.87675602]
[1750573045348,17.37675602,136.38,136.33,10.87675602]
[1750573045655,6.5,136.38,136.34,10.87675602]
[1750573046036,6.5,136.38,136.35,10.87675602]
[1750573046235,6.5,136.38,136.36,5.86682311]
[1750573047245,10.87675602,136.4,136.36,20.53388089]
[1750573047953,164.24955602,136.41,136.36,31.41063691]
[1750573051076,153.3728,136.41,136.36,31.41063691]
[1750573051230,146.9,136.4,136.37,10.87675602]
[1750573051745,146.9,136.4,136.38,5.86596275]
[1750573051943,146.9,136.4,136.38,16.74271877]
[1750573052840,146.9,136.4,136.38,5.86596275]
[1750573054434,146.9,136.4,136.38,16.74271877]
[1750573054635,146.9,136.4,136.39,10.87675602]
[1750573055950,146.9,136.4,136.39,16.74228868]
[1750573056263,146.9,136.45,136.4,18.64964886]
[1750573056447,157.77675602,136.46,136.41,10.87675602]
[1750573056651,10.87675602,136.45,136.4,29.52640488]
[1750573057158,187.85675602,136.46,136.4,18.64964886]
[1750573057339,187.85675602,136.46,136.41,10.87675602]
[1750573057340,157.77675602,136.46,136.41,10.87675602]
[1750573058067,157.77675602,136.46,136.42,5.86424277]
[1750573058256,146.9,136.46,136.42,5.86424277]
[1750573058441,146.9,136.46,136.42,31.40160573]
[1750573058636,146.9,136.46,136.43,10.87675602]
[1750573058859,146.9,136.46,136.44,10.87675602]
[1750573059444,6.48,136.48,136.44,10.87675602]
[1750573060355,10.87675602,136.47,136.43,31.40010132]
[1750573060557,17.35675602,136.48,136.43,31.40010132]
[1750573061765,6.48,136.48,136.44,10.87675602]
[1750573062144,17.35675602,136.48,136.43,31.40010132]
[1750573063371,6.48,136.48,136.44,10.87675602]
[1750573064068,17.35675602,136.48,136.44,10.87675602]
[1750573064272,6.48,136.48,136.44,10.87675602]
[1750573064857,153.38,136.48,136.44,10.87675602]
[1750573066070,153.38,136.48,136.45,5.86295346]
[1750573066269,153.38,136.48,136.45,20.52033711]
[1750573068379,153.38,136.48,136.41,27.5281]
[1750573068380,164.25675602,136.48,136.42,20.52484971]
[1750573068550,164.25675602,136.48,136.43,29.52640488]
[1750573069380,10.87675602,136.47,136.44,5.86338317]
[1750573069700,157.77675602,136.46,136.44,5.86338317]
[1750573071956,157.77675602,136.46,136.42,14.66060694]
[1750573071957,10.87675602,136.45,136.42,20.52484971]
[1750573072952,157.77675602,136.46,136.42,20.52484971]
[1750573073879,146.9,136.45,136.42,20.52484971]
[1750573074352,157.77675602,136.45,136.42,20.52484971]
[1750573074951,10.87675602,136.43,136.42,5.86424277]
[1750573075376,10.87675602,136.43,136.4,5.86510263]
[1750573075557,146.9,136.42,136.4,5.86510263]
[1750573075762,157.77675602,136.42,136.4,5.86510263]
[1750573075951,10.87675602,136.41,136.4,5.86510263]
[1750573076358,10.87675602,136.41,136.37,5.8663929]
[1750573076660,146.9,136.4,136.37,5.8663929]
[1750573076869,146.9,136.4,136.37,20.53237515]
[1750573077971,146.9,136.4,136.37,31.40913117]
[1750573078353,146.9,136.4,136.38,10.87675602]
[1750573078574,146.9,136.4,136.37,20.53237515]
[1750573078778,146.9,136.4,136.38,10.87675602]
[1750573079076,146.9,136.4,136.39,26.0]
[1750573080575,146.9,136.39,136.35,5.86725339]
[1750573080881,10.87675602,136.37,136.35,5.86725339]
[1750573081067,157.77675602,136.36,136.31,25.54849931]
[1750573081266,146.9,136.35,136.31,51.54849931]
[1750573081469,146.9,136.35,136.32,20.5399061]
[1750573082360,146.9,136.35,136.34,16.74443975]
[1750573084478,146.9,136.35,136.34,5.86768373]
[1750573086482,146.9,136.35,136.32,20.5399061]
[1750573088079,157.77675602,136.34,136.32,5.8685446]
[1750573089958,146.9,136.34,136.32,5.8685446]
[1750573090461,157.77675602,136.34,136.32,5.8685446]
[1750573090867,146.9,136.34,136.32,5.8685446]
[1750573091899,146.9,136.34,136.31,5.86897513]
[1750573092278,157.77675602,136.34,136.31,5.86897513]
[1750573093596,10.87675602,136.33,136.31,5.86897513]
[1750573093996,10.87675602,136.33,136.3,5.86940572]
[1750573094987,10.87675602,136.32,136.3,5.86940572]
[1750573095491,10.87675602,136.33,136.3,5.86940572]
[1750573096077,10.87675602,136.33,136.28,10.87675602]
[1750573096078,10.87675602,136.31,136.28,5.87026709]
[1750573096468,146.9,136.3,136.28,5.87026709]
[1750573097870,146.9,136.3,136.27,20.54744256]
[1750573100203,146.9,136.3,136.27,31.42419858]
[1750573100904,146.9,136.3,136.27,20.54744256]
[1750573101581,10.87675602,136.28,136.25,5.87155963]
[1750573101776,146.9,136.27,136.25,5.87155963]
[1750573101976,146.9,136.27,136.26,10.87675602]
[1750573102173,146.9,136.3,136.27,5.87069787]
[1750573102473,146.9,136.3,136.28,10.87675602]
[1750573102876,146.9,136.3,136.27,31.42419858]
[1750573105888,8.1688,136.33,136.29,10.87675602]
[1750573106293,19.04555602,136.33,136.28,10.87675602]
[1750573107625,19.04555602,136.33,136.29,20.54442731]
[1750573109300,165.94555602,136.33,136.29,20.54442731]
[1750573112836,10.87675602,136.32,136.29,20.54442731]
[1750573114093,10.87675602,136.32,136.29,14.67459094]
[1750573115100,146.9,136.31,136.29,14.67459094]
[1750573117697,146.9,136.31,136.29,25.55134696]
[1750573118498,146.9,136.31,136.29,14.67459094]
[1750573118725,146.9,136.31,136.29,25.55134696]
[1750573119098,146.9,136.31,136.29,31.42118333]
[1750573120417,164.29675602,136.34,136.29,20.54442731]
[1750573120619,10.87675602,136.32,136.29,20.54442731]
[1750573121203,149.16340405,136.33,136.29,14.67459094]
[1750573121412,119.06340405,136.33,136.29,14.67459094]
[1750573122311,119.06340405,136.33,136.29,20.54442731]
[1750573123202,108.18664803,136.33,136.29,31.42118333]
[1750573124421,119.06340405,136.33,136.29,20.54442731]
[1750573126635,10.87675602,136.32,136.29,20.54442731]
[1750573126825,16.36392822,136.32,136.29,20.54442731]
[1750573127023,46.46392822,136.32,136.29,20.54442731]
[1750573128018,46.46392822,136.32,136.29,14.67459094]
[1750573128224,16.36392822,136.32,136.29,14.67459094]
[1750573128430,10.87675602,136.32,136.29,14.67459094]
[1750573129919,149.16340405,136.33,136.29,14.67459094]
[1750573131221,108.18664803,136.33,136.3,10.87675602]
[1750573132217,108.18664803,136.33,136.29,31.42118333]
[1750573132938,108.18664803,136.33,136.3,10.87675602]
[1750573133142,108.18664803,136.33,136.31,10.87675602]
[1750573133320,108.18664803,136.33,136.3,10.87675602]
[1750573134321,108.18664803,136.33,136.31,10.87675602]
[1750573135339,108.18664803,136.33,136.3,20.54292002]
[1750573135340,108.18664803,136.33,136.3,31.41967604]
[1750573136820,108.18664803,136.33,136.32,10.87675602]
[1750573137324,145.06340405,136.37,136.32,10.87675602]
[1750573137529,5.49250839,136.36,136.32,10.87675602]
[1750573137744,149.16340405,136.37,136.32,36.87675602]
[1750573137931,16.36800402,136.36,136.32,36.87675602]
[1750573138133,16.36815081,136.35,136.32,26.0]
[1750573138344,10.87675602,136.35,136.32,26.0]
[1750573138761,30.1,136.36,136.32,26.0]
[1750573139052,124.55468584,136.35,136.33,5.86811413]
[1750573139251,119.06340405,136.35,136.33,5.86811413]
[1750573141459,10.87675602,136.34,136.33,5.86811413]
[1750573142265,119.06340405,136.35,136.33,5.86811413]
[1750573144370,108.18664803,136.35,136.33,5.86811413]
[1750573144549,108.18664803,136.35,136.33,16.74487015]
[1750573144946,108.18664803,136.35,136.33,5.86811413]
[1750573146152,119.06340405,136.35,136.33,5.86811413]
[1750573148340,119.06340405,136.35,136.32,14.67117004]
[1750573150354,108.18664803,136.35,136.32,20.53971464]
[1750573152263,119.06340405,136.35,136.32,20.53971464]
[1750573152462,119.06340405,136.35,136.32,14.67117004]
[1750573154950,108.18664803,136.35,136.32,14.67117004]
[1750573156271,108.18664803,136.35,136.32,31.41647066]
[1750573156455,108.18664803,136.35,136.32,20.53971464]
[1750573156662,108.18664803,136.35,136.32,31.41647066]
[1750573158443,108.18664803,136.35,136.33,10.87675602]
[1750573158649,108.18664803,136.35,136.34,10.87675602]
[1750573159579,108.18664803,136.35,136.34,16.74443975]
[1750573160354,108.18664803,136.35,136.34,5.86768373]
[1750573165484,108.18664803,136.35,136.34,16.74443975]
[1750573168472,55.63925602,136.39,136.34,31.41364907]
[1750573168692,44.7625,136.39,136.34,31.41364907]
[1750573168894,50.24426495,136.39,136.35,10.87675602]
[1750573169080,5.48176495,136.39,136.36,10.87675602]
[1750573169484,5.48176495,136.39,136.37,5.8663929]
[1750573169994,108.18664803,136.4,136.37,31.40913117]
[1750573171001,108.18664803,136.4,136.38,10.87675602]
[1750573171572,108.18664803,136.4,136.39,5.86553266]
[1750573172588,14.5034,136.42,136.39,5.86553266]
[1750573172789,5.48045633,136.41,136.39,5.86553266]
[1750573174102,108.18664803,136.4,136.39,5.86553266]
[1750573174329,108.18664803,136.4,136.36,5.86682311]
[1750573174330,108.18664803,136.39,136.36,5.86682311]
[1750573174476,10.87675602,136.37,136.36,5.86682311]
[1750573175308,16.35911742,136.37,136.36,5.86682311]
[1750573175807,5.4823614,136.37,136.36,5.86682311]
[1750573176001,16.35911742,136.37,136.36,5.86682311]
[1750573176306,16.35911742,136.37,136.33,20.53822453]
[1750573177902,5.4823614,136.37,136.33,31.41498055]
[1750573178089,108.18664803,136.38,136.34,10.87675602]
[1750573178285,108.18664803,136.38,136.35,10.87675602]
[1750573179613,108.18664803,136.38,136.36,10.87675602]
[1750573180203,108.18664803,136.38,136.37,5.8663929]
[1750573182287,108.18664803,136.38,136.37,16.74314892]
[1750573184606,108.18664803,136.38,136.37,5.8663929]
[1750573185425,108.18664803,136.38,136.37,16.74314892]
[1750573185716,51.38015602,136.42,136.37,50.05878003]
[1750573186014,51.38015602,136.42,136.38,10.87675602]
[1750573186383,40.5034,136.42,136.38,10.87675602]
[1750573186892,40.5034,136.42,136.39,5.86553266]
[1750573188692,40.5034,136.42,136.39,5.86553266]
[1750573189500,51.38015602,136.42,136.39,5.86553266]
[1750573190719,40.5034,136.42,136.39,5.86553266]
[1750573190923,6.48,136.42,136.39,16.74228868]
[1750573191300,6.48,136.42,136.39,5.86553266]
[1750573192216,11.95703793,136.42,136.39,5.86553266]
[1750573192427,6.48,136.42,136.39,5.86553266]
[1750573199519,17.35675602,136.42,136.39,5.86553266]
[1750573200219,17.35675602,136.42,136.38,5.86596275]
[1750573200698,6.48,136.42,136.38,31.40762564]
[1750573201106,17.35675602,136.42,136.38,20.53086962]
[1750573203124,6.48,136.42,136.38,31.40762564]
[1750573204020,6.48,136.42,136.4,10.87675602]
[1750573204226,6.48,136.42,136.41,5.86467267]
[1750573205427,108.18664803,136.44,136.41,5.86467267]
[1750573207200,119.06340405,136.44,136.39,10.87675602]
[1750573208535,119.06340405,136.44,136.4,5.86510263]
[1750573210925,149.12340405,136.44,136.4,9.57931167]
[1750573211933,10.87675602,136.43,136.4,5.86510263]
[1750573212113,16.35585811,136.43,136.4,5.86510263]
[1750573212315,5.47910209,136.43,136.4,5.86510263]
[1750573212523,108.18664803,136.44,136.4,31.40461524]
[1750573212707,108.18664803,136.44,136.4,20.52785922]
[1750573213036,108.18664803,136.44,136.41,18.64964886]
[1750573213213,108.18664803,136.44,136.42,10.87675602]
[1750573213411,108.18664803,136.44,136.43,10.87675602]
[1750573214129,108.18664803,136.44,136.43,35.39021782]
[1750573214332,6.48,136.47,136.43,50.04975018]
[1750573214520,5.47706106,136.48,136.45,10.87675602]
[1750573214922,108.18664803,136.49,136.45,10.87675602]
[1750573215454,108.18664803,136.49,136.48,10.87675602]
[1750573215635,14.8733672,136.51,136.48,10.87675602]
[1750573215847,6.48,136.52,136.49,10.87675602]
[1750573216020,6.48,136.52,136.5,5.86080586]
[1750573216342,62.7109099,136.56,136.5,5.86080586]
[1750573216343,6.8632099,136.57,136.51,29.52640488]
[1750573216655,10.87675602,136.58,136.53,10.87675602]
[1750573216822,16.33541736,136.58,136.53,10.87675602]
[1750573217161,5.45866134,136.58,136.53,10.87675602]
[1750573217446,10.87675602,136.58,136.53,10.87675602]
[1750573217649,164.38664803,136.59,136.53,10.87675602]
[1750573217816,108.18664803,136.59,136.53,18.64964886]
[1750573218023,145.06340405,136.59,136.56,5.85823081]
[1750573218333,119.06340405,136.59,136.56,5.85823081]
[1750573218549,10.87675602,136.58,136.54,5.85873357]
[1750573219367,138.44664803,136.59,136.54,5.85873357]
[1750573219368,149.32340405,136.59,136.54,16.73548959]
[1750573220046,149.32340405,136.59,136.53,14.64781919]
[1750573220247,10.87675602,136.58,136.53,25.52457521]
[1750573221450,138.44664803,136.59,136.54,10.87675602]
[1750573221451,149.32340405,136.59,136.54,10.87675602]
[1750573221656,138.44664803,136.59,136.54,10.87675602]
[1750573221865,149.32340405,136.59,136.54,10.87675602]
[1750573222038,119.06340405,136.59,136.55,5.85865983]
[1750573222360,149.38340405,136.59,136.55,5.85865983]
[1750573222662,10.87675602,136.58,136.55,5.85865983]
[1750573222827,10.87675602,136.57,136.55,5.85865983]
[1750573224627,10.87675602,136.57,136.53,14.64781919]
[1750573224628,10.87675602,136.57,136.53,20.50733724]
[1750573225752,149.36340405,136.56,136.53,5.85951805]
[1750573225955,10.87675602,136.54,136.51,5.86037652]
[1750573226249,10.87675602,136.52,136.49,5.86123525]
[1750573226460,10.87675602,136.5,136.46,10.87675602]
[1750573226636,108.18664803,136.51,136.44,25.53455316]
[1750573226958,10.87675602,136.48,136.44,25.53455316]
[1750573227651,10.87675602,136.49,136.45,5.86295346]
[1750573228060,41.17675602,136.5,136.45,31.39709313]
[1750573228555,30.3,136.5,136.47,10.87675602]
[1750573228756,108.18664803,136.51,136.47,10.87675602]
[1750573229235,108.18664803,136.51,136.46,18.64964886]
[1750573229435,108.18664803,136.51,136.47,10.87675602]
[1750573230551,108.18664803,136.51,136.48,5.86166471]
[1750573231057,119.06340405,136.51,136.48,5.86166471]
[1750573232247,10.87675602,136.5,136.48,5.86166471]
[1750573232447,10.87675602,136.5,136.46,5.86252381]
[1750573232958,10.87675602,136.49,136.46,5.86252381]
[1750573234340,10.87675602,136.49,136.45,20.52033711]
[1750573235054,10.87675602,136.49,136.45,31.39709313]
[1750573235258,41.15675602,136.5,136.45,31.39709313]
[1750573235961,41.15675602,136.5,136.46,10.87675602]
[1750573236166,108.18664803,136.51,136.47,10.87675602]
[1750573236335,108.18664803,136.51,136.48,5.86166471]
[1750573241262,108.18664803,136.51,136.48,31.39258251]
[1750573241844,108.18664803,136.51,136.48,20.51582649]
[1750573242042,108.18664803,136.51,136.48,31.39258251]
[1750573246474,108.18664803,136.51,136.48,5.86166471]